fUSD/lending_fUSD_20250205
["ID","MTS","AMOUNT","RATE_DAILY","PERIOD"]
[351737815,1738771844756,-500.0,9.246e-05,2]
[351737817,1738771844767,-500.0,9.246e-05,2]
[351737819,1738771844777,-500.0,9.246e-05,2]
[351737821,1738771844788,-1263.94,9.246e-05,2]
[351737823,1738771844799,-500.0,9.246e-05,2]
[351737825,1738771844812,-873.98,9.246e-05,2]
[351737827,1738771844822,-191.35,9.246e-05,2]
[351737830,1738771844833,-500.0,9.246e-05,2]
[351737832,1738771844844,-500.0,9.246e-05,2]
[351737834,1738771844855,-500.0,9.246e-05,2]
[351737836,1738771844866,-500.0,9.246e-05,2]
[351737858,1738771844879,-2767.25,9.246e-05,2]
[351737860,1738771845087,-500.0,9.246e-05,2]
[351737862,1738771845097,-1351.66,9.246e-05,2]
[351737864,1738771845108,-794.15,9.246e-05,2]
[351737866,1738771845118,-500.0,9.246e-05,2]
[351737868,1738771845129,-500.0,9.246e-05,2]
[351737870,1738771845139,-500.0,9.246e-05,2]
[351737872,1738771845151,-500.0,9.246e-05,2]
[351737874,1738771845161,-995.15,9.246e-05,2]
[351737876,1738771845172,-500.0,9.246e-05,2]
[351737878,1738771845182,-500.0,9.246e-05,2]
[351737880,1738771845192,-509.04,9.246e-05,2]
[351737882,1738771845202,-541.3,9.246e-05,2]
[351737884,1738771845213,-1529.77,9.246e-05,2]
[351737886,1738771845224,-608.19,9.246e-05,2]
[351737888,1738771845234,-500.0,9.246e-05,2]
[351737890,1738771845244,-500.0,9.246e-05,2]
[351737892,1738771845255,-587.28,9.246e-05,2]
[351737894,1738771845265,-955.06,9.246e-05,2]
[351737896,1738771845275,-1000.0,9.247e-05,2]
[351737898,1738771845286,-157.568543,9.382e-05,2]
[351737900,1738771845296,-500.0,9.382e-05,2]
[351737902,1738771845308,-500.0,9.382e-05,2]
[351737904,1738771845318,-303.3317,9.382e-05,2]
[351737906,1738771845328,-1365.25,9.382e-05,2]
[351737909,1738771845338,-500.0,9.382e-05,2]
[351737911,1738771845348,-623.84,9.382e-05,2]
[351737913,1738771845358,-500.0,9.382e-05,2]
[351737914,1738771845368,-637.58,9.382e-05,2]
[351737916,1738771845381,-660.58,9.382e-05,2]
[351737918,1738771845392,-500.0,9.382e-05,2]
[351737921,1738771845402,-677.45,9.382e-05,2]
[351737923,1738771845413,-500.0,9.382e-05,2]
[351737925,1738771845423,-657.6,9.382e-05,2]
[351737927,1738771845433,-322.336595,9.382e-05,2]
[351737929,1738771845443,-500.0,9.382e-05,2]
[351737931,1738771845454,-500.0,9.382e-05,2]
[351737933,1738771845464,-549.14,9.382e-05,2]
[351737935,1738771845474,-500.0,9.382e-05,2]
[351737937,1738771845484,-596.96,9.382e-05,2]
[351737939,1738771845493,-527.61,9.382e-05,2]
[351737941,1738771845504,-500.0,9.382e-05,2]
[351737943,1738771845515,-927.41,9.382e-05,2]
[351737944,1738771845525,-1412.29,9.382e-05,2]
[351737947,1738771845535,-764.98,9.382e-05,2]
[351737949,1738771845545,-785.56,9.382e-05,2]
[351737951,1738771845555,-1888.48,9.382e-05,2]
[351737953,1738771845566,-1187.93,9.382e-05,2]
[351737955,1738771845575,-1413.76,9.382e-05,2]
[351737957,1738771845585,-695.95,9.382e-05,2]
[351737959,1738771845595,-599.71,9.382e-05,2]
[351737961,1738771845606,-1788.75,9.382e-05,2]
[351737963,1738771845616,-1194.3,9.382e-05,2]
[351737965,1738771845626,-500.0,9.382e-05,2]
[351737967,1738771845636,-385.39,9.382e-05,2]
[351737969,1738771845646,-514.06,9.382e-05,2]
[351737971,1738771845656,-933.46,9.382e-05,2]
[351737973,1738771845666,-500.0,9.382e-05,2]
[351737974,1738771845676,-437.31,9.382e-05,2]
[351737975,1738771845687,-500.0,9.382e-05,2]
[351737976,1738771845697,-500.0,9.382e-05,2]
[351737977,1738771845707,-500.0,9.382e-05,2]
[351737978,1738771845716,-500.0,9.382e-05,2]
[351737979,1738771845727,-1831.77,9.382e-05,2]
[351737980,1738771845737,-500.0,9.382e-05,2]
[351737981,1738771845747,-500.0,9.382e-05,2]
[351737982,1738771845757,-500.0,9.382e-05,2]
[351737983,1738771845767,-500.0,9.382e-05,2]
[351737984,1738771845778,-1103.47,9.382e-05,2]
[351737985,1738771845788,-913.2,9.382e-05,2]
[351737986,1738771845798,-500.0,9.382e-05,2]
[351737988,1738771845808,-500.0,9.382e-05,2]
[351737990,1738771845818,-500.0,9.382e-05,2]
[351737992,1738771845828,-500.0,9.382e-05,2]
[351737994,1738771845837,-570.34,9.382e-05,2]
[351737996,1738771845847,-500.0,9.382e-05,2]
[351737998,1738771845857,-921.24,9.382e-05,2]
[351738000,1738771845867,-500.0,9.382e-05,2]
[351738002,1738771845877,-500.0,9.382e-05,2]
[351738004,1738771845887,-1000.0,9.382e-05,2]
[351738006,1738771845897,-500.0,9.382e-05,2]
[351738008,1738771845907,-591.54,9.382e-05,2]
[351738010,1738771845916,-3174.66,9.382e-05,2]
[351738012,1738771845926,-500.0,9.382e-05,2]
[351738014,1738771845936,-500.0,9.382e-05,2]
[351738016,1738771845945,-500.0,9.382e-05,2]
[351738018,1738771845956,-500.0,9.382e-05,2]
[351738020,1738771845967,-1149.06,9.382e-05,2]
[351738022,1738771845977,-973.6,9.382e-05,2]
[351738024,1738771845986,-558.48,9.382e-05,2]
[351738026,1738771845996,-1294.06,9.382e-05,2]
[351738028,1738771846005,-500.0,9.382e-05,2]
[351738030,1738771846015,-1258.85,9.382e-05,2]
[351738033,1738771846024,-2123.01,9.382e-05,2]
[351738036,1738771846034,-234.6871887,9.383e-05,2]
[351738038,1738771846045,-621.95,9.383e-05,2]
[351738041,1738771846055,-500.0,9.383e-05,2]
[351738046,1738771846069,-500.0,9.383e-05,2]
[351738049,1738771846079,-547.44,9.383e-05,2]
[351738052,1738771846089,-500.0,9.383e-05,2]
[351738055,1738771846100,-500.0,9.383e-05,2]
[351738058,1738771846110,-500.0,9.383e-05,2]
[351738061,1738771846120,-500.0,9.383e-05,2]
[351738064,1738771846130,-500.0,9.383e-05,2]
[351738066,1738771846140,-500.0,9.383e-05,2]
[351738068,1738771846150,-500.0,9.383e-05,2]
[351738070,1738771846159,-207.4,9.383e-05,2]
[351738072,1738771846170,-500.0,9.383e-05,2]
[351738074,1738771846181,-500.0,9.383e-05,2]
[351738077,1738771846191,-366.3,9.383e-05,2]
[351738080,1738771846201,-577.12,9.383e-05,2]
[351738083,1738771846210,-500.0,9.383e-05,2]
[351738086,1738771846219,-500.0,9.383e-05,2]
[351738089,1738771846229,-500.0,9.383e-05,2]
[351738092,1738771846240,-273.29,9.383e-05,2]
[351738095,1738771846250,-500.0,9.383e-05,2]
[351738098,1738771846261,-411.9,9.383e-05,2]
[351738101,1738771846271,-578.32,9.383e-05,2]
[351738104,1738771846280,-500.0,9.383e-05,2]
[351738107,1738771846292,-500.0,9.383e-05,2]
[351738110,1738771846302,-500.0,9.383e-05,2]
[351738113,1738771846314,-500.0,9.383e-05,2]
[351738116,1738771846323,-500.0,9.383e-05,2]
[351738119,1738771846334,-500.0,9.383e-05,2]
[351738122,1738771846344,-578.57,9.383e-05,2]
[351738124,1738771846353,-500.0,9.383e-05,2]
[351738128,1738771846363,-452.59,9.383e-05,2]
[351738130,1738771846376,-637.54,9.383e-05,2]
[351738133,1738771846385,-619.12664685,9.383e-05,2]
[351738136,1738771846395,-547.58,9.383e-05,2]
[351738139,1738771846405,-500.0,9.383e-05,2]
[351738143,1738771846416,-500.0,9.383e-05,2]
[351738146,1738771846425,-375.4,9.383e-05,2]
[351738149,1738771846435,-500.0,9.383e-05,2]
[351738151,1738771846445,-500.0,9.383e-05,2]
[351738154,1738771846455,-500.0,9.383e-05,2]
[351738157,1738771846465,-533.89,9.383e-05,2]
[351738160,1738771846475,-500.0,9.383e-05,2]
[351738163,1738771846485,-609.23,9.383e-05,2]
[351738167,1738771846496,-640.41,9.383e-05,2]
[351738169,1738771846505,-686.43,9.383e-05,2]
[351738172,1738771846516,-500.0,9.383e-05,2]
[351738175,1738771846526,-500.0,9.383e-05,2]
[351738179,1738771846537,-500.0,9.383e-05,2]
[351738181,1738771846548,-500.0,9.383e-05,2]
[351738184,1738771846563,-250.71,9.383e-05,2]
[351738186,1738771846573,-500.0,9.383e-05,2]
[351738190,1738771846583,-500.0,9.383e-05,2]
[351738194,1738771846594,-500.0,9.383e-05,2]
[351738197,1738771846605,-419.88,9.383e-05,2]
[351738200,1738771846615,-500.0,9.383e-05,2]
[351738203,1738771846625,-885.56,9.383e-05,2]
[351738206,1738771846635,-500.0,9.383e-05,2]
[351738209,1738771846646,-500.0,9.383e-05,2]
[351738212,1738771846656,-500.0,9.383e-05,2]
[351738215,1738771846665,-449.58780016,9.383e-05,2]
[351738218,1738771846676,-500.0,9.383e-05,2]
[351738221,1738771846686,-500.0,9.383e-05,2]
[351738224,1738771846697,-500.0,9.383e-05,2]
[351738227,1738771846707,-297.18,9.383e-05,2]
[351738230,1738771846716,-395.91,9.383e-05,2]
[351738233,1738771846726,-518.57,9.383e-05,2]
[351738236,1738771846737,-534.28,9.383e-05,2]
[351738238,1738771846747,-525.08,9.383e-05,2]
[351738242,1738771846757,-1412.21,9.383e-05,2]
[351738243,1738771846767,-500.0,9.383e-05,2]
[351738246,1738771846777,-500.0,9.383e-05,2]
[351738249,1738771846788,-500.0,9.383e-05,2]
[351738252,1738771846798,-500.0,9.383e-05,2]
[351738254,1738771846811,-500.0,9.383e-05,2]
[351738256,1738771846821,-1263.94,9.383e-05,2]
[351738258,1738771846831,-500.0,9.383e-05,2]
[351738260,1738771846842,-873.98,9.383e-05,2]
[351738263,1738771846853,-500.0,9.383e-05,2]
[351738265,1738771846863,-500.0,9.383e-05,2]
[351738267,1738771846874,-500.0,9.383e-05,2]
[351738268,1738771846883,-500.0,9.383e-05,2]
[351738270,1738771846894,-2767.25,9.383e-05,2]
[351738272,1738771846904,-500.0,9.383e-05,2]
[351738275,1738771846914,-1351.66,9.383e-05,2]
[351738276,1738771846924,-794.15,9.383e-05,2]
[351738278,1738771846933,-500.0,9.383e-05,2]
[351738280,1738771846945,-543.49,9.383e-05,2]
[351738282,1738771846954,-500.0,9.383e-05,2]
[351738285,1738771846964,-500.0,9.383e-05,2]
[351738287,1738771846973,-995.15,9.383e-05,2]
[351738289,1738771846982,-500.0,9.383e-05,2]
[351738291,1738771846992,-509.04,9.383e-05,2]
[351738293,1738771847002,-500.0,9.383e-05,2]
[351738295,1738771847012,-541.3,9.383e-05,2]
[351738297,1738771847022,-1529.77,9.383e-05,2]
[351738299,1738771847032,-608.19,9.383e-05,2]
[351738301,1738771847042,-542.29,9.383e-05,2]
[351738303,1738771847052,-500.0,9.383e-05,2]
[351738305,1738771847064,-587.28,9.383e-05,2]
[351738307,1738771847074,-955.06,9.383e-05,2]
[351738309,1738771847084,-500.0,9.519e-05,2]
[351738311,1738771847094,-500.0,9.519e-05,2]
[351738313,1738771847104,-303.3317,9.519e-05,2]
[351738315,1738771847113,-1365.25,9.519e-05,2]
[351738317,1738771847122,-500.0,9.519e-05,2]
[351738319,1738771847132,-623.84,9.519e-05,2]
[351738321,1738771847142,-500.0,9.519e-05,2]
[351738323,1738771847153,-637.58,9.519e-05,2]
[351738325,1738771847162,-660.58,9.519e-05,2]
[351738327,1738771847172,-500.0,9.519e-05,2]
[351738329,1738771847182,-677.45,9.519e-05,2]
[351738331,1738771847192,-500.0,9.519e-05,2]
[351738333,1738771847201,-657.6,9.519e-05,2]
[351738335,1738771847211,-322.336595,9.519e-05,2]
[351738337,1738771847222,-500.0,9.519e-05,2]
[351738339,1738771847231,-500.0,9.519e-05,2]
[351738341,1738771847241,-549.14,9.519e-05,2]
[351738343,1738771847252,-500.0,9.519e-05,2]
[351738345,1738771847262,-596.96,9.519e-05,2]
[351738347,1738771847272,-527.61,9.519e-05,2]
[351738349,1738771847282,-500.0,9.519e-05,2]
[351738351,1738771847292,-927.41,9.519e-05,2]
[351738354,1738771847303,-1412.29,9.519e-05,2]
[351738355,1738771847316,-764.98,9.519e-05,2]
[351738358,1738771847326,-785.56,9.519e-05,2]
[351738359,1738771847336,-1888.48,9.519e-05,2]
[351738361,1738771847346,-1187.93,9.519e-05,2]
[351738364,1738771847356,-1413.76,9.519e-05,2]
[351738366,1738771847368,-695.95,9.519e-05,2]
[351738368,1738771847382,-599.71,9.519e-05,2]
[351738370,1738771847397,-1788.75,9.519e-05,2]
[351738372,1738771847408,-1194.3,9.519e-05,2]
[351738374,1738771847418,-500.0,9.519e-05,2]
[351738376,1738771847430,-514.06,9.519e-05,2]
[351738378,1738771847441,-933.46,9.519e-05,2]
[351738380,1738771847450,-500.0,9.519e-05,2]
[351738382,1738771847461,-500.0,9.519e-05,2]
[351738384,1738771847470,-361.31,9.519e-05,2]
[351738385,1738771847480,-325.41,9.519e-05,2]
[351738387,1738771847489,-500.0,9.519e-05,2]
[351738389,1738771847499,-1831.77,9.519e-05,2]
[351738397,1738771847565,-500.0,9.519e-05,2]
[351738399,1738771847576,-500.0,9.519e-05,2]
[351738401,1738771847587,-500.0,9.519e-05,2]
[351738403,1738771847596,-500.0,9.519e-05,2]
[351738405,1738771847606,-1103.47,9.519e-05,2]
[351738407,1738771847616,-913.2,9.519e-05,2]
[351738409,1738771847625,-500.0,9.519e-05,2]
[351738411,1738771847635,-500.0,9.519e-05,2]
[351738413,1738771847646,-262.45,9.519e-05,2]
[351738415,1738771847656,-500.0,9.519e-05,2]
[351738417,1738771847666,-570.34,9.519e-05,2]
[351738419,1738771847675,-500.0,9.519e-05,2]
[351738421,1738771847685,-921.24,9.519e-05,2]
[351738423,1738771847695,-500.0,9.519e-05,2]
[351738425,1738771847704,-500.0,9.519e-05,2]
[351738426,1738771847715,-1000.0,9.519e-05,2]
[351738428,1738771847724,-500.0,9.519e-05,2]
[351738430,1738771847734,-591.54,9.519e-05,2]
[351738432,1738771847744,-3174.66,9.519e-05,2]
[351738434,1738771847754,-500.0,9.519e-05,2]
[351738436,1738771847764,-500.0,9.519e-05,2]
[351738438,1738771847774,-339.09,9.519e-05,2]
[351738440,1738771847784,-254.89,9.519e-05,2]
[351738442,1738771847794,-1149.06,9.519e-05,2]
[351738443,1738771847805,-973.6,9.519e-05,2]
[351738445,1738771847821,-558.48,9.519e-05,2]
[351738447,1738771847833,-1294.06,9.519e-05,2]
[351738449,1738771847845,-500.0,9.519e-05,2]
[351738451,1738771847856,-1258.85,9.519e-05,2]
[351738453,1738771847866,-2123.01,9.519e-05,2]
[351738455,1738771847876,-500.0,9.52e-05,2]
[351738457,1738771847887,-500.0,9.52e-05,2]
[351738459,1738771847898,-547.44,9.52e-05,2]
[351738461,1738771847906,-500.0,9.52e-05,2]
[351738463,1738771847914,-500.0,9.52e-05,2]
[351738465,1738771847921,-500.0,9.52e-05,2]
[351738467,1738771847929,-500.0,9.52e-05,2]
[351738469,1738771847938,-500.0,9.52e-05,2]
[351738471,1738771847948,-500.0,9.52e-05,2]
[351738473,1738771847957,-500.0,9.52e-05,2]
[351738475,1738771847966,-500.0,9.52e-05,2]
[351738477,1738771847976,-381.59,9.52e-05,2]
[351738479,1738771847986,-577.12,9.52e-05,2]
[351738481,1738771847995,-500.0,9.52e-05,2]
[351738483,1738771848004,-226.58,9.52e-05,2]
[351738485,1738771848013,-444.21,9.52e-05,2]
[351738487,1738771848022,-500.0,9.52e-05,2]
[351738489,1738771848030,-500.0,9.52e-05,2]
[351738491,1738771848040,-500.0,9.52e-05,2]
[351738493,1738771848050,-500.0,9.52e-05,2]
[351738495,1738771848064,-500.0,9.52e-05,2]
[351738497,1738771848074,-500.0,9.52e-05,2]
[351738499,1738771848083,-500.0,9.52e-05,2]
[351738501,1738771848094,-500.0,9.52e-05,2]
[351738503,1738771848106,-547.58,9.52e-05,2]
[351738505,1738771848119,-304.09,9.52e-05,2]
[351738507,1738771848131,-500.0,9.52e-05,2]
[351738509,1738771848142,-500.0,9.52e-05,2]
[351738511,1738771848152,-500.0,9.52e-05,2]
[351738512,1738771848163,-163.94,9.52e-05,2]
[351738514,1738771848174,-500.0,9.52e-05,2]
[351738516,1738771848184,-686.43,9.52e-05,2]
[351738518,1738771848194,-500.0,9.52e-05,2]
[351738520,1738771848205,-204.99,9.52e-05,2]
[351738522,1738771848217,-500.0,9.52e-05,2]
[351738524,1738771848228,-500.0,9.52e-05,2]
[351738526,1738771848239,-500.0,9.52e-05,2]
[351738528,1738771848250,-500.0,9.52e-05,2]
[351738530,1738771848261,-500.0,9.52e-05,2]
[351738532,1738771848274,-500.0,9.52e-05,2]
[351738534,1738771848286,-885.56,9.52e-05,2]
[351738535,1738771848296,-500.0,9.52e-05,2]
[351738537,1738771848307,-500.0,9.52e-05,2]
[351738539,1738771848321,-299.15,9.52e-05,2]
[351738541,1738771848331,-500.0,9.52e-05,2]
[351738543,1738771848342,-500.0,9.52e-05,2]
[351738545,1738771848353,-500.0,9.52e-05,2]
[351738547,1738771848364,-518.57,9.52e-05,2]
[351738549,1738771848376,-534.28,9.52e-05,2]
[351738551,1738771848388,-525.08,9.52e-05,2]
[351738553,1738771848399,-1412.21,9.52e-05,2]
[351738555,1738771848410,-500.0,9.52e-05,2]
[351738557,1738771848421,-500.0,9.52e-05,2]
[351738558,1738771848431,-500.0,9.52e-05,2]
[351738559,1738771848440,-500.0,9.52e-05,2]
[351738560,1738771848450,-500.0,9.52e-05,2]
[351738561,1738771848464,-1263.94,9.52e-05,2]
[351738562,1738771848476,-500.0,9.52e-05,2]
[351738563,1738771848488,-873.98,9.52e-05,2]
[351738564,1738771848500,-500.0,9.52e-05,2]
[351738565,1738771848512,-500.0,9.52e-05,2]
[351738566,1738771848523,-500.0,9.52e-05,2]
[351738567,1738771848534,-272.92435059,9.52e-05,2]
[351738568,1738771848545,-2767.25,9.52e-05,2]
[351738569,1738771848556,-500.0,9.52e-05,2]
[351738570,1738771848572,-1351.66,9.52e-05,2]
[351738571,1738771848583,-794.15,9.52e-05,2]
[351738572,1738771848594,-430.87,9.52e-05,2]
[351738573,1738771848606,-500.0,9.52e-05,2]
[351738574,1738771848617,-260.21,9.52e-05,2]
[351738576,1738771848627,-995.15,9.52e-05,2]
[351738578,1738771848638,-319.27,9.52e-05,2]
[351738580,1738771848649,-509.04,9.52e-05,2]
[351738582,1738771848660,-500.0,9.52e-05,2]
[351738584,1738771848671,-541.3,9.52e-05,2]
[351738586,1738771848681,-1529.77,9.52e-05,2]
[351738588,1738771848692,-608.19,9.52e-05,2]
[351738589,1738771848703,-500.0,9.52e-05,2]
[351738592,1738771848714,-587.28,9.52e-05,2]
[351738593,1738771848724,-955.06,9.52e-05,2]
[351738595,1738771848735,-420.0,9.568e-05,2]
[351738597,1738771848746,-167.93,9.592e-05,2]
[351738600,1738771848757,-500.0,9.656e-05,2]
[351738601,1738771848767,-633.11,9.656e-05,2]
[351738603,1738771848778,-303.3317,9.656e-05,2]
[351738605,1738771848788,-1365.25,9.656e-05,2]
[351738607,1738771848798,-500.0,9.656e-05,2]
[351738609,1738771848809,-623.84,9.656e-05,2]
[351738611,1738771848822,-500.0,9.656e-05,2]
[351738613,1738771848832,-637.58,9.656e-05,2]
[351738615,1738771848842,-660.58,9.656e-05,2]
[351738617,1738771848853,-500.0,9.656e-05,2]
[351738619,1738771848863,-677.45,9.656e-05,2]
[351738621,1738771848873,-500.0,9.656e-05,2]
[351738623,1738771848885,-657.6,9.656e-05,2]
[351738625,1738771848895,-322.336595,9.656e-05,2]
[351738627,1738771848906,-192.45,9.656e-05,2]
[351738629,1738771848916,-500.0,9.656e-05,2]
[351738631,1738771848927,-549.14,9.656e-05,2]
[351738633,1738771848937,-500.0,9.656e-05,2]
[351738635,1738771848948,-596.96,9.656e-05,2]
[351738637,1738771848959,-527.61,9.656e-05,2]
[351738639,1738771848970,-500.0,9.656e-05,2]
[351738640,1738771848981,-927.41,9.656e-05,2]
[351738643,1738771848992,-1412.29,9.656e-05,2]
[351738645,1738771849003,-764.98,9.656e-05,2]
[351738647,1738771849013,-785.56,9.656e-05,2]
[351738649,1738771849023,-1888.48,9.656e-05,2]
[351738651,1738771849033,-1187.93,9.656e-05,2]
[351738653,1738771849043,-1413.76,9.656e-05,2]
[351738655,1738771849054,-695.95,9.656e-05,2]
[351738657,1738771849068,-599.71,9.656e-05,2]
[351738659,1738771849079,-1788.75,9.656e-05,2]
[351738661,1738771849089,-1194.3,9.656e-05,2]
[351738663,1738771849099,-500.0,9.656e-05,2]
[351738665,1738771849110,-514.06,9.656e-05,2]
[351738667,1738771849121,-933.46,9.656e-05,2]
[351738669,1738771849132,-500.0,9.656e-05,2]
[351738671,1738771849141,-500.0,9.656e-05,2]
[351738673,1738771849152,-208.38,9.656e-05,2]
[351738675,1738771849164,-1831.77,9.656e-05,2]
[351738677,1738771849174,-500.0,9.656e-05,2]
[351738679,1738771849185,-500.0,9.656e-05,2]
[351738681,1738771849195,-500.0,9.656e-05,2]
[351738683,1738771849204,-500.0,9.656e-05,2]
[351738685,1738771849214,-1103.47,9.656e-05,2]
[351738687,1738771849225,-913.2,9.656e-05,2]
[351738688,1738771849235,-446.95971424,9.656e-05,2]
[351738724,1738771849581,-122.79028576,9.656e-05,2]
[351738726,1738771849591,-366.38225348,9.656e-05,2]
[351738729,1738771849604,-133.61774652,9.656e-05,2]
[351738731,1738771849614,-500.0,9.656e-05,2]
[351738733,1738771849624,-570.34,9.656e-05,2]
[351738735,1738771849633,-179.54225341,9.656e-05,2]
[351738737,1738771849646,-320.45774659,9.656e-05,2]
[351738739,1738771849655,-921.24,9.656e-05,2]
[351738741,1738771849665,-500.0,9.656e-05,2]
[351738743,1738771849675,-500.0,9.656e-05,2]
[351738745,1738771849686,-1000.0,9.656e-05,2]
[351738747,1738771849696,-500.0,9.656e-05,2]
[351738749,1738771849705,-395.43955296,9.656e-05,2]
[351738831,1738771850498,-500.0,8.835e-05,2]
[351738833,1738771850509,-196.10044704,9.656e-05,2]
[351738835,1738771850519,-3174.66,9.656e-05,2]
[351738837,1738771850528,-271.72817984,9.656e-05,2]
[351738839,1738771850540,-228.27182016,9.656e-05,2]
[351738841,1738771850550,-500.0,9.656e-05,2]
[351738843,1738771850560,-327.50435064,9.656e-05,2]
[351738845,1738771850575,-821.55564936,9.656e-05,2]
[351738847,1738771850585,-973.6,9.656e-05,2]
[351738849,1738771850595,-558.48,9.656e-05,2]
[351738851,1738771850604,-1294.06,9.656e-05,2]
[351738853,1738771850614,-500.0,9.656e-05,2]
[351738855,1738771850624,-1258.85,9.656e-05,2]
[351738857,1738771850635,-2123.01,9.656e-05,2]
[351738859,1738771850644,-6251.84862062,9.656e-05,2]
[351738861,1738771850658,-2491.48137938,9.656e-05,2]
[351738863,1738771850668,-500.0,9.657e-05,2]
[351738865,1738771850677,-500.0,9.657e-05,2]
[351738867,1738771850687,-547.44,9.657e-05,2]
[351738869,1738771850698,-500.0,9.657e-05,2]
[351738871,1738771850707,-500.0,9.657e-05,2]
[351738874,1738771850717,-500.0,9.657e-05,2]
[351738876,1738771850727,-500.0,9.657e-05,2]
[351738877,1738771850737,-500.0,9.657e-05,2]
[351738880,1738771850747,-500.0,9.657e-05,2]
[351738882,1738771850757,-500.0,9.657e-05,2]
[351738884,1738771850767,-500.0,9.657e-05,2]
[351738886,1738771850777,-577.12,9.657e-05,2]
[351738888,1738771850787,-500.0,9.657e-05,2]
[351738890,1738771850797,-500.0,9.657e-05,2]
[351738892,1738771850807,-500.0,9.657e-05,2]
[351738894,1738771850820,-324.46284578,9.657e-05,2]
[351738896,1738771850832,-175.53715422,9.657e-05,2]
[351738898,1738771850842,-225.99870017,9.657e-05,2]
[351738900,1738771850854,-274.00129983,9.657e-05,2]
[351738902,1738771850863,-500.0,9.657e-05,2]
[351738904,1738771850873,-500.0,9.657e-05,2]
[351738906,1738771850883,-500.0,9.657e-05,2]
[351738908,1738771850893,-500.0,9.657e-05,2]
[351738910,1738771850903,-547.58,9.657e-05,2]
[351738912,1738771850913,-500.0,9.657e-05,2]
[351738914,1738771850923,-500.0,9.657e-05,2]
[351738916,1738771850932,-500.0,9.657e-05,2]
[351738918,1738771850941,-500.0,9.657e-05,2]
[351738920,1738771850951,-686.43,9.657e-05,2]
[351738922,1738771850960,-583.78,9.657e-05,2]
[351738924,1738771850970,-500.0,9.657e-05,2]
[351738925,1738771850980,-500.0,9.657e-05,2]
[351738926,1738771850990,-500.0,9.657e-05,2]
[351738927,1738771851001,-500.0,9.657e-05,2]
[351738928,1738771851010,-500.0,9.657e-05,2]
[351738929,1738771851020,-500.0,9.657e-05,2]
[351738930,1738771851029,-885.56,9.657e-05,2]
[351738931,1738771851040,-500.0,9.657e-05,2]
[351738932,1738771851049,-500.0,9.657e-05,2]
[351738933,1738771851060,-230.79,9.657e-05,2]
[351738934,1738771851073,-500.0,9.657e-05,2]
[351738935,1738771851083,-518.57,9.657e-05,2]
[351738936,1738771851093,-525.08,9.657e-05,2]
[351738938,1738771851103,-500.0,9.657e-05,2]
[351738940,1738771851113,-500.0,9.657e-05,2]
[351738942,1738771851122,-500.0,9.657e-05,2]
[351738944,1738771851132,-500.0,9.657e-05,2]
[351738946,1738771851142,-500.0,9.657e-05,2]
[351738948,1738771851151,-1263.94,9.657e-05,2]
[351738950,1738771851162,-428.80673872,9.657e-05,2]
[351738952,1738771851172,-873.98,9.657e-05,2]
[351738954,1738771851182,-500.0,9.657e-05,2]
[351738956,1738771851192,-500.0,9.657e-05,2]
[351738958,1738771851203,-500.0,9.657e-05,2]
[351738961,1738771851212,-2767.25,9.657e-05,2]
[351738963,1738771851222,-500.0,9.657e-05,2]
[351738965,1738771851232,-1351.66,9.657e-05,2]
[351738967,1738771851243,-794.15,9.657e-05,2]
[351738969,1738771851253,-500.0,9.657e-05,2]
[351738970,1738771851264,-995.15,9.657e-05,2]
[351738973,1738771851275,-509.04,9.657e-05,2]
[351738975,1738771851285,-500.0,9.657e-05,2]
[351738977,1738771851296,-541.3,9.657e-05,2]
[351739000,1738771851508,-1529.77,9.657e-05,2]
[351739002,1738771851518,-608.19,9.657e-05,2]